bitfinex-derivatives/quotes_ETHF0:USTF0_20250816
["timestamp","ask_amount","ask_price","bid_price","bid_amount"]
[1755353914679,1.68735102,4398.4,4398.3,20.889]
[1755353915082,0.9345,4397.6,4397.1,0.2916]
[1755353915287,1.5636,4397.2,4397.1,1.362]
[1755353915484,1.5636,4397.2,4397.1,22.249]
[1755353916687,0.9141,4397.2,4397.1,22.249]
[1755353917586,0.6291,4397.2,4397.1,1.362]
[1755353917789,0.6291,4397.2,4397.1,22.249]
[1755353917992,0.6291,4397.2,4397.1,1.362]
[1755353918188,0.6291,4397.2,4397.1,22.248]
[1755353921292,1.5636,4397.2,4397.1,22.248]
[1755353923195,1.5636,4397.2,4397.1,1.362]
[1755353923394,1.5636,4397.2,4397.1,22.247]
[1755353926899,0.6291,4397.2,4397.1,22.247]
[1755353927098,1.5636,4397.2,4397.1,22.247]
[1755353927395,1.5636,4397.0,4396.9,3.2078]
[1755353927598,0.6291,4396.4,4396.3,3.3844]
[1755353927790,1.5636,4396.4,4396.3,3.3844]
[1755353928194,1.5636,4396.4,4396.3,24.2684]
[1755353928496,0.6394,4396.3,4396.1,0.10236229]
[1755353928698,0.7254967,4396.2,4396.1,0.10236229]
[1755353928894,1.6099967,4396.2,4396.1,0.10236229]
[1755353930796,1.6099967,4396.2,4396.1,0.26946229]
[1755353931397,1.6099967,4396.2,4396.1,0.10236229]
[1755353931799,1.60987599,4396.2,4396.1,0.10236229]
[1755353934205,1.60987599,4396.2,4396.1,1.63746229]
[1755353935903,0.2451,4397.2,4396.2,0.9265]
[1755353936105,0.90528569,4397.1,4397.0,0.6086]
[1755353936306,1.33658569,4397.1,4397.0,1.5351]
[1755353936507,1.60988569,4397.1,4397.0,1.5351]
[1755353937103,0.12398569,4397.1,4397.0,1.5351]
[1755353937307,4.3276,4397.6,4397.5,1.1378]
[1755353937507,4.81768957,4397.6,4397.5,1.0059]
[1755353937803,4.54438642,4397.6,4397.5,1.0059]
[1755353938008,4.81768642,4397.6,4397.5,1.5351]
[1755353938405,4.81768642,4397.6,4397.5,0.8283]
[1755353938611,4.81768642,4397.6,4397.5,0.1671]
[1755353939612,4.81768642,4397.6,4397.5,1.5351]
[1755353940304,1.60988642,4397.6,4397.5,1.5351]
[1755353941510,1.60988642,4397.6,4396.8,3.2078]
[1755353941709,0.4152,4397.0,4396.9,21.314]
[1755353941914,1.4859,4397.0,4396.9,22.4181]
[1755353942606,0.3661,4397.6,4397.5,0.1671]
[1755353942810,1.00821159,4397.6,4397.5,22.4181]
[1755353943109,0.8845,4397.6,4397.5,22.4181]
[1755353943315,0.64210008,4397.6,4397.5,22.4181]
[1755353944112,0.81060008,4397.6,4397.5,22.4181]
[1755353944312,1.24350008,4397.6,4397.5,22.4181]
[1755353944612,1.60960008,4397.6,4397.5,22.4181]
[1755353944813,1.60960008,4397.6,4397.5,21.8889]
[1755353945013,1.60960008,4397.6,4397.5,22.4181]
[1755353946016,1.4859,4397.5,4397.4,20.882]
[1755353946312,1.60960008,4397.5,4396.8,4.1343]
[1755353946511,0.4152,4397.0,4396.9,22.4171]
[1755353946702,0.3661,4397.8,4396.9,20.882]
[1755353946908,1.4859,4397.5,4397.4,4.7429]
[1755353947108,1.4859,4397.5,4397.4,25.6249]
[1755353947910,1.4859,4397.5,4397.4,25.72759507]
[1755353948308,1.4859,4397.5,4397.4,22.51979507]
[1755353951118,1.60966404,4397.5,4397.4,22.51979507]
[1755353953414,1.4859,4397.5,4397.4,22.51979507]
[1755353953918,1.60968152,4397.5,4397.4,22.51979507]
[1755353954112,1.4859,4397.5,4397.4,22.51979507]
[1755353954312,1.60968691,4397.5,4397.4,22.51979507]
[1755353955119,1.60968805,4397.5,4397.4,22.51979507]
[1755353955621,1.4859,4397.5,4397.4,22.51979507]
[1755353955816,1.4859,4397.5,4397.4,21.15179507]
[1755353956017,1.60969268,4397.5,4397.4,21.15179507]
[1755353956523,1.60969268,4397.5,4397.4,0.10269507]
[1755353956719,1.60971274,4397.5,4397.4,0.10269507]
[1755353957421,1.60971936,4397.5,4397.4,0.10269507]
[1755353958619,3.92632475,4397.5,4396.2,3.5936]
[1755353958815,1.4941,4396.4,4396.3,33.646]
[1755353959015,1.4941,4396.4,4396.3,54.524]
[1755353961221,1.4941,4396.4,4396.3,22.3771]
[1755353961820,1.4941,4396.4,4396.3,22.3791]
[1755353962417,1.108,4396.4,4396.3,1.4991]
[1755353962716,1.108,4396.4,4396.3,22.3781]
[1755353964022,0.8645,4396.4,4396.3,22.3781]
[1755353964222,1.61816494,4396.4,4396.3,22.3781]
[1755353968026,0.12406494,4396.4,4396.3,22.3781]
[1755353968225,4.3158,4397.1,4397.0,0.6021]
[1755353968520,1.61821171,4397.1,4397.0,22.3781]
[1755353968823,0.12411171,4397.1,4397.0,22.3781]
[1755353970326,0.39191171,4397.1,4397.0,22.3781]
[1755353970518,0.80121171,4397.1,4397.0,22.3781]
[1755353970713,1.23211171,4397.1,4397.0,22.3781]
[1755353970918,1.61821171,4397.1,4397.0,22.3781]
[1755353974327,1.05401171,4397.1,4397.0,22.3781]
[1755353974525,3.2078,4397.8,4397.0,21.9923]
[1755353974727,1.2103399,4399.4,4397.0,21.9923]
[1755353974728,0.2678,4398.4,4397.6,4.5336]
[1755353974927,0.8645,4398.4,4398.3,0.6021]
[1755353975128,1.81977333,4398.4,4398.3,20.878]
[1755353975529,1.81977333,4398.4,4398.3,21.0482]
[1755353976332,1.61819383,4398.4,4398.3,21.0482]
[1755353976825,1.35039383,4398.4,4398.3,21.6828]
[1755353977130,0.12409383,4398.4,4398.3,22.3771]
[1755353978524,0.12409383,4398.4,4398.3,22.3751]
[1755353978727,0.2678,4398.7,4398.3,22.3751]
[1755353978924,0.4336,4398.5,4398.4,1.4991]
[1755353979325,0.8552,4398.5,4398.4,1.4991]
[1755353980830,1.108,4398.5,4398.4,1.4991]
[1755353981333,1.4941,4398.5,4398.4,1.4991]
[1755353982734,0.2528,4398.2,4398.1,3.2078]
[1755353982936,0.8402,4397.7,4397.6,24.4268]
[1755353983132,1.4941,4397.7,4397.6,45.2988]
[1755353983429,1.4941,4397.7,4397.6,46.1958]
[1755353983836,1.4941,4397.7,4397.6,25.5789]
[1755353984230,1.4941,4397.7,4397.6,24.4988]
[1755353985832,1.4941,4397.7,4397.6,24.0798]
[1755353986028,0.8974,4397.6,4397.0,3.2078]
[1755353986231,1.4941,4397.1,4397.0,0.9879]
[1755353986431,1.4941,4397.1,4397.0,22.3701]
[1755353986629,0.3439,4397.1,4397.0,22.3701]
[1755353986835,1.108,4397.5,4397.4,1.2299]
[1755353987026,0.5113,4397.7,4397.5,0.897]
[1755353987336,1.108,4397.7,4397.6,22.3711]
[1755353987536,1.4941,4397.7,4397.6,22.3711]
[1755353987736,0.1781,4397.7,4397.6,22.3711]
[1755353987932,1.4941,4398.3,4398.2,1.4991]
[1755353988143,1.61787671,4398.3,4398.2,22.3711]
[1755353988327,1.61787402,4398.3,4398.2,22.3711]
[1755353988527,0.5306,4398.8,4398.2,21.9853]
[1755353988731,3.6083,4398.9,4398.2,21.9853]
[1755353988732,1.1492,4398.7,4398.2,20.872]
[1755353988935,0.6186,4398.7,4398.6,1.0127]
[1755353989131,0.74236826,4398.7,4398.6,22.393]
[1755353989337,1.5497,4398.7,4398.6,22.393]
[1755353991639,1.5497,4398.7,4398.6,1.522]
[1755353991941,1.67346803,4398.7,4398.6,21.8837]
[1755353992738,0.6186,4398.7,4398.6,22.393]
[1755353992934,1.1492,4398.7,4398.6,22.393]
[1755353994435,1.27303773,4398.7,4398.6,22.393]
[1755353994633,0.74243773,4398.7,4398.6,20.869]
[1755353994835,1.5497,4398.2,4398.1,1.522]
[1755353995034,1.5497,4398.2,4398.1,22.391]
[1755353995535,1.5497,4398.2,4398.1,0.665]
[1755353995731,1.67357681,4398.2,4398.1,20.869]
[1755353995937,1.0191,4397.5,4397.4,0.829]
[1755353996136,1.5497,4397.5,4397.4,21.698]
[1755353996536,1.5497,4397.5,4397.4,1.0127]
[1755353996737,1.5497,4397.5,4397.4,21.8807]
[1755353997046,1.5497,4397.5,4397.4,1.522]
[1755353997235,1.5497,4397.5,4397.4,22.39]
[1755353999044,1.5497,4397.5,4397.4,21.2984]
[1755354000239,1.67369241,4397.5,4397.4,21.2984]
[1755354000936,1.67369241,4397.5,4397.4,22.391]
[1755354001137,1.67179342,4397.5,4397.4,22.391]
[1755354001838,1.27129342,4397.5,4397.4,22.391]
[1755354002050,0.6355,4398.0,4397.9,0.6131]
[1755354002244,1.27130396,4398.0,4397.9,22.391]
[1755354002440,1.67180396,4398.0,4397.9,22.391]
[1755354003050,34.32858498,4400.1,4397.9,22.391]
[1755354003051,1.2103399,4400.8,4399.2,0.45433]
[1755354003241,0.6186,4400.2,4400.1,4.7298]
[1755354003437,0.6186,4400.2,4400.1,24.4578]
[1755354003648,0.6186,4400.2,4399.6,0.3996]
[1755354003649,0.6186,4400.2,4399.7,0.243]
[1755354003945,0.6186,4400.0,4399.9,0.8561]
[1755354004156,3.2078,4400.6,4399.9,1.279]
[1755354004444,0.81604256,4400.5,4400.4,0.407]
[1755354004749,0.1809,4400.5,4400.4,1.522]
[1755354004948,0.4584,4400.5,4400.4,1.522]
[1755354005148,0.1809,4400.5,4400.4,1.522]
[1755354005338,0.678,4400.8,4400.4,0.6131]
[1755354005541,0.2775,4400.8,4400.7,1.522]
[1755354005742,1.2966,4400.8,4400.7,22.557]
[1755354006250,1.2966,4400.8,4400.7,22.2907]
[1755354006448,1.2966,4400.8,4400.7,21.8911]
[1755354006646,0.6186,4400.5,4400.3,3.2078]
[1755354006850,1.3,4400.3,4400.2,21.034]
[1755354007148,1.4771,4400.3,4399.8,0.243]
[1755354007348,0.8585,4399.9,4399.6,3.4508]
[1755354007645,1.4771,4399.7,4399.6,24.4858]
[1755354008152,1.4771,4399.7,4399.6,3.4508]
[1755354008544,0.719,4399.7,4399.6,4.7298]
[1755354008748,14.691,4401.6,4399.6,25.7588]
[1755354008950,8.9155,4402.5,4400.3,0.8561]
[1755354008951,0.1809,4400.4,4400.3,0.8561]
[1755354009153,0.4005,4400.7,4400.3,22.548]
[1755354009341,0.8589,4400.8,4400.7,0.6131]
[1755354009544,0.8589,4400.8,4400.7,4.7298]
[1755354010148,1.2966,4400.8,4400.7,4.7298]
[1755354011044,3.2078,4401.5,4400.7,4.7298]
[1755354011246,1.2966,4400.9,4400.8,0.8561]
[1755354011447,1.4771,4400.8,4400.7,3.2078]
[1755354012945,1.4771,4400.8,4400.7,3.4508]
[1755354013151,1.2966,4400.8,4400.7,4.7298]
[1755354013553,3.3883,4401.5,4400.7,4.4868]
[1755354013752,0.1809,4400.9,4400.8,0.8561]
[1755354013943,0.8961,4400.9,4400.8,1.522]
[1755354014147,1.2966,4400.9,4400.8,1.522]
[1755354015553,0.1809,4400.9,4400.8,1.522]
[1755354016054,3.3887,4401.5,4401.4,1.1224]
[1755354016243,3.3887,4401.5,4401.4,1.522]
[1755354016244,3.6662,4401.5,4401.4,1.522]
[1755354016449,3.9268,4401.5,4401.4,1.522]
[1755354016644,4.5044,4401.5,4401.4,0.243]
[1755354016849,0.6186,4401.5,4401.0,0.3996]
[1755354017050,1.2966,4401.2,4401.1,0.243]
[1755354017247,1.2966,4401.2,4400.7,3.4508]
[1755354017248,1.0766,4401.2,4400.7,3.4508]
[1755354017451,0.6186,4400.9,4400.8,0.243]
[1755354017655,0.8961,4400.9,4400.8,1.072]
[1755354017846,1.2966,4400.9,4400.8,1.522]
[1755354018454,0.4005,4401.6,4400.9,0.9089]
[1755354018651,0.253,4401.5,4401.0,0.267]
[1755354018852,1.2354,4401.5,4401.4,0.4381]
[1755354019046,0.8139,4401.5,4401.4,1.4962]
[1755354019256,0.3776,4402.0,4401.4,1.4962]
[1755354019455,1.0729,4401.8,4401.7,0.5968]
[1755354019652,0.8562,4402.0,4401.9,0.8994]
[1755354019847,1.2338,4402.0,4401.9,1.4962]
[1755354020652,0.5581,4401.9,4401.3,0.267]
[1755354020954,0.5581,4401.9,4401.3,1.2387]
[1755354020955,1.2338,4401.4,4401.3,1.2387]
[1755354021458,1.2338,4401.4,4401.3,1.4962]
[1755354022354,0.253,4401.9,4401.3,1.2292]
[1755354022551,1.0729,4401.5,4401.4,1.4962]
[1755354024158,1.2338,4401.5,4401.4,1.4962]
[1755354025655,1.2338,4401.5,4401.4,0.617]
[1755354025957,1.2338,4401.3,4401.2,0.4381]
[1755354026254,1.2338,4401.3,4401.2,3.888]
[1755354026451,1.2338,4401.3,4401.2,4.4465]
[1755354027056,1.4143,4401.3,4401.2,3.4748]
[1755354027456,1.2338,4401.3,4401.2,3.6459]
[1755354027658,1.2338,4401.3,4401.2,3.888]
[1755354027850,1.2338,4401.3,4401.2,0.6802]
[1755354028749,1.2338,4401.3,4401.2,1.2387]
[1755354030456,1.2338,4401.3,4401.2,1.4962]
[1755354031059,1.2338,4401.3,4401.2,0.6802]
[1755354031661,1.4143,4401.3,4401.2,0.6802]
[1755354032361,1.61125478,4401.3,4401.2,0.6802]
[1755354033059,1.43075478,4401.3,4401.2,1.2387]
[1755354033260,1.43075478,4401.3,4401.2,1.4962]
[1755354034961,1.43075478,4401.3,4401.2,1.0551]
[1755354035167,0.19695478,4401.3,4401.2,1.4962]
[1755354035468,0.253,4401.8,4401.3,0.8994]
[1755354035660,0.3776,4402.6,4402.2,0.5968]
[1755354035861,1.15932824,4402.5,4402.4,0.5968]
[1755354036067,0.19703528,4402.5,4402.4,1.4962]
[1755354036962,0.3776,4403.3,4402.4,0.5968]
[1755354037165,0.78160572,4403.2,4403.1,1.4962]
[1755354037368,0.19706652,4403.2,4403.1,1.4962]
[1755354037566,3.2078,4403.6,4403.1,0.8638]
[1755354037763,0.78114086,4403.5,4403.4,0.5968]
[1755354037968,0.78114086,4403.5,4403.4,1.4962]
[1755354038263,1.56464086,4403.5,4402.6,0.5245]
[1755354038464,0.6306,4403.3,4402.7,0.3749]
[1755354038673,0.19694171,4403.2,4402.8,0.5968]
[1755354038869,0.6306,4403.5,4403.2,0.8994]
[1755354039061,1.2338,4403.5,4403.4,1.4962]
[1755354039260,2.01466247,4403.5,4403.4,1.4962]
[1755354039462,1.05305711,4403.5,4403.4,1.4962]
[1755354039662,0.63915711,4403.5,4403.4,1.4962]
[1755354040067,0.4423,4403.5,4403.4,1.4962]
[1755354041468,0.259,4403.7,4403.6,0.4257]
[1755354041664,1.22209775,4403.7,4403.6,1.4962]
[1755354041865,1.47509775,4403.7,4403.6,1.4962]
[1755354042573,2.01350766,4403.7,4403.6,1.4962]
[1755354042872,2.01347657,4403.7,4403.6,1.4962]
[1755354043266,1.43035511,4403.7,4403.6,1.4962]
[1755354043877,0.1833,4403.7,4403.6,1.4962]
[1755354044080,3.911,4404.2,4404.1,0.5968]
[1755354044267,1.48272897,4404.2,4404.1,1.4962]
[1755354044474,0.29651654,4404.2,4404.1,1.4962]
[1755354044672,0.29651654,4404.2,4404.1,1.49084008]
[1755354044871,0.1,4404.2,4404.1,1.49084008]
[1755354045075,0.2833,4404.2,4404.1,1.49084008]
[1755354045480,1.3338,4404.2,4404.1,1.49084008]
[1755354046475,0.1833,4403.8,4403.2,3.8402]
[1755354046672,0.6032,4403.7,4403.6,1.3251]
[1755354046873,1.2338,4403.7,4403.6,1.4962]
[1755354047676,0.1,4404.2,4403.6,1.4962]
[1755354047985,0.2833,4404.2,4404.1,1.4962]
[1755354048173,0.1,4404.2,4404.1,1.4962]
[1755354049677,0.8913,4405.2,4405.1,0.4114]
[1755354049876,1.2524,4405.2,4405.1,1.5022]
[1755354050982,0.617,4405.2,4404.7,3.4749]
[1755354051177,1.2524,4404.9,4404.8,0.6785]
[1755354051377,1.5004,4404.9,4404.8,0.8555]
[1755354051681,1.2524,4404.9,4404.8,1.5022]
[1755354054779,1.2346,4404.8,4404.7,3.2078]
[1755354055086,3.2078,4405.3,4404.0,4.0633]
[1755354055087,0.617,4404.1,4404.0,4.0633]
[1755354055283,1.2524,4404.1,4404.0,4.71]
[1755354056087,1.5004,4404.1,4404.0,3.6392]
[1755354056481,1.5004,4404.1,4404.0,3.4749]
[1755354056787,1.5004,4404.1,4404.0,3.2078]
[1755354057085,1.5004,4404.1,4404.0,3.4749]
[1755354057785,1.5004,4404.1,4404.0,3.2078]
[1755354058177,1.5004,4404.1,4404.0,0.4314]
[1755354058878,1.5004,4404.1,4404.0,0.6785]
[1755354059083,1.2524,4404.1,4404.0,1.5022]
[1755354059481,1.5004,4404.1,4404.0,1.5022]
[1755354059681,1.2524,4404.1,4404.0,1.5022]
[1755354060275,1.5004,4404.1,4403.7,0.2683]
[1755354060490,1.5004,4403.5,4403.4,3.2078]
[1755354060781,0.8834,4403.1,4402.3,3.2078]
[1755354060988,1.2103399,4404.2,4402.3,3.2078]
[1755354060989,1.5004,4402.4,4402.3,3.2078]
[1755354061180,1.5004,4402.4,4402.3,3.6392]
[1755354061378,1.5004,4402.4,4402.3,4.0633]
[1755354061587,1.2524,4402.4,4402.3,4.71]
[1755354061879,1.2524,4403.3,4403.2,0.4114]
[1755354062086,1.5004,4403.3,4403.2,0.6785]
[1755354062280,1.69669592,4403.3,4403.2,0.6785]
[1755354063087,1.2524,4403.3,4403.2,1.5022]
[1755354063490,1.5004,4403.3,4403.2,1.2339]
[1755354063980,1.2524,4403.3,4403.2,1.5022]
[1755354064686,0.8913,4403.3,4403.2,1.5022]
[1755354064881,3.2078,4403.8,4403.7,0.1643]
[1755354065084,4.85308847,4403.8,4403.7,0.1643]
[1755354065387,4.85308847,4403.8,4403.7,0.4314]
[1755354065584,5.24048847,4403.8,4403.7,1.2339]
[1755354065783,0.63577096,4403.8,4403.7,1.5022]
[1755354066181,0.19657096,4403.8,4403.7,1.5022]
[1755354066386,0.4477,4403.9,4403.8,1.5022]
[1755354066583,0.64378519,4403.9,4403.8,1.5022]
[1755354066784,1.44848519,4403.9,4403.8,1.5022]
[1755354067588,1.08738519,4403.9,4403.8,1.5022]
[1755354068485,0.64378519,4403.9,4403.8,1.5022]
[1755354068690,0.36948519,4403.9,4403.8,1.5022]
[1755354068884,0.64378519,4403.9,4403.8,1.5022]
[1755354069081,1.08738519,4403.9,4403.8,1.5022]
[1755354069281,1.44848519,4403.9,4403.8,1.5022]
[1755354069688,1.69648519,4403.9,4403.8,0.8555]
[1755354069984,1.69648519,4403.9,4403.8,0.4314]
[1755354070181,1.44848519,4403.9,4403.8,0.8555]
[1755354070387,1.44848519,4403.9,4403.8,1.2339]
[1755354071090,0.617,4403.4,4403.3,4.2859]
[1755354071288,1.2524,4403.4,4403.3,3.4749]
[1755354071492,1.5004,4403.4,4403.3,0.2671]
[1755354071886,1.69664112,4403.4,4403.3,0.2671]
[1755354072787,0.617,4402.7,4402.6,4.0633]
[1755354072994,1.5004,4402.7,4402.6,3.2078]
[1755354073287,1.5004,4402.3,4402.2,0.8098]
[1755354073493,1.5004,4402.3,4402.2,1.2339]
[1755354073690,1.2524,4402.3,4402.2,1.5022]
[1755354073886,0.1734,4402.3,4402.2,1.5022]
[1755354074090,1.2524,4402.7,4402.6,0.5884]
[1755354074489,1.44851619,4402.7,4402.6,1.5022]
[1755354075293,0.248,4403.2,4402.6,1.5022]
[1755354075586,1.5004,4402.7,4402.2,0.6467]
[1755354075791,1.5004,4402.3,4402.2,0.4314]
[1755354075987,0.617,4402.1,4402.0,3.2078]
[1755354076192,1.5004,4402.1,4401.5,3.2078]
[1755354076382,0.617,4401.6,4401.5,3.3721]
[1755354076584,1.2524,4401.6,4401.5,4.2647]
[1755354076789,1.2524,4401.6,4401.5,4.71]
[1755354078191,1.2524,4401.6,4401.5,4.0633]
[1755354078385,1.2524,4401.6,4401.5,4.4417]
[1755354078592,1.2524,4401.6,4401.5,4.7009]
[1755354079193,1.0587,4402.4,4402.3,0.4162]
[1755354079491,1.2393,4402.4,4402.3,1.2139]
[1755354079690,1.5008,4402.4,4402.3,0.8451]
[1755354080885,0.2655,4402.3,4401.9,3.467]
[1755354081091,0.6054,4402.3,4402.0,0.2553]
[1755354081395,1.2393,4401.5,4401.4,1.4731]
[1755354081584,0.4461,4401.5,4401.4,1.4731]
[1755354081788,0.1806,4401.5,4401.4,1.4731]
[1755354081993,0.6339,4401.8,4401.4,1.4731]
[1755354082188,1.2393,4401.8,4401.7,1.2178]
[1755354082397,1.2393,4401.8,4401.7,1.4731]
[1755354082595,0.2655,4402.4,4401.7,0.849]
[1755354082804,0.8709,4402.4,4402.3,1.4731]
[1755354083698,0.1806,4402.4,4402.3,1.4731]
[1755354085002,0.4461,4402.4,4402.3,1.4731]
[1755354085298,1.2393,4402.4,4402.3,1.4731]
[1755354086302,1.43525537,4402.4,4401.8,3.2078]
[1755354086500,1.2393,4402.0,4401.9,0.8451]
[1755354087096,1.2393,4402.0,4401.9,1.4731]
[1755354087598,0.8026,4402.6,4402.5,0.1667]
[1755354087801,1.43530223,4402.6,4402.5,0.4162]
[1755354087997,1.43530223,4402.6,4402.5,0.6715]
[1755354088303,3.2078,4403.2,4402.5,1.4731]
[1755354088304,0.6339,4403.1,4402.5,1.4731]
[1755354088492,0.36476744,4403.0,4402.9,0.5898]
[1755354088696,0.37666744,4403.0,4402.9,1.4731]
[1755354089499,0.6339,4403.7,4402.9,0.5898]
[1755354089700,1.43542586,4403.6,4403.5,1.4731]
[1755354089994,0.6339,4403.1,4402.8,0.628]
[1755354090200,0.8709,4403.0,4402.9,1.4731]
[1755354090596,3.2078,4403.9,4403.0,0.8833]
[1755354090597,0.6339,4403.8,4403.0,0.8833]
[1755354090797,0.6054,4403.1,4403.0,1.4731]
[1755354091001,1.2393,4403.1,4403.0,1.4731]
[1755354096917,0.6339,4403.0,4402.2,0.628]
[1755354097101,1.2393,4402.9,4402.8,0.422]
[1755354097308,1.2393,4402.9,4402.8,1.0403]
[1755354097601,1.2393,4402.9,4402.8,1.2139]
[1755354097802,1.6982202,4402.9,4402.8,1.2139]
[1755354098513,0.1974202,4402.9,4402.8,4.6809]
[1755354098695,0.2655,4403.4,4402.9,0.6241]
[1755354098896,1.2393,4403.4,4403.3,1.4731]
[1755354099098,0.3684,4403.3,4402.9,0.3688]
[1755354099303,1.5008,4403.3,4403.2,0.422]
[1755354099505,1.69833757,4403.3,4403.2,0.6715]
[1755354099906,1.69833757,4403.3,4403.2,1.2139]
[1755354100605,1.69833757,4403.3,4403.2,0.6715]
[1755354100797,1.69833757,4403.3,4403.2,0.422]
[1755354100996,0.1806,4402.5,4402.4,0.5048]
[1755354101201,1.2393,4402.5,4402.4,1.4731]
[1755354101405,1.43688707,4402.5,4402.4,1.4731]
[1755354101601,1.69838707,4402.5,4402.4,0.8451]
[1755354101804,1.69838707,4402.5,4402.4,0.2553]
[1755354102511,0.6054,4402.2,4402.1,3.6298]
[1755354102711,1.69850474,4402.2,4402.1,0.422]
[1755354102912,1.5008,4402.2,4402.1,0.422]
[1755354103212,1.5008,4402.2,4402.1,0.2553]
[1755354103906,1.5008,4402.2,4402.1,0.422]
[1755354104100,1.5008,4402.2,4402.1,0.6715]
[1755354104304,1.69846636,4402.2,4402.1,0.6715]
[1755354104909,1.5008,4402.2,4402.1,0.6715]
[1755354105108,1.69846697,4402.2,4402.1,0.6715]
[1755354105610,1.5008,4402.2,4402.1,0.6715]
[1755354105812,1.69843364,4402.2,4402.1,0.6715]
[1755354106004,1.5008,4402.2,4402.1,0.6715]
[1755354106201,1.5008,4402.2,4402.1,1.2139]
[1755354106809,1.2353,4402.2,4401.7,0.3688]
[1755354107110,1.2393,4401.8,4401.7,1.2178]
[1755354107606,1.2393,4401.8,4401.7,1.4731]
[1755354109814,3.2078,4402.7,4401.7,1.4731]
[1755354110007,2.02170562,4402.6,4402.5,1.4758]
[1755354110712,0.19761469,4402.6,4402.5,1.4758]
[1755354110904,3.2078,4403.4,4402.5,1.4758]
[1755354111106,0.19761085,4403.3,4403.2,1.4758]
[1755354111501,0.37011085,4403.3,4403.2,1.4758]
[1755354111710,0.63741085,4403.3,4403.2,1.4758]
[1755354111908,0.80481085,4403.3,4403.2,1.4758]
[1755354113812,0.53751085,4403.3,4403.2,1.4758]
[1755354114014,0.53744781,4403.3,4403.2,1.4758]
[1755354114211,0.19754781,4403.3,4403.2,1.4758]
[1755354114412,0.63734781,4403.3,4403.2,1.4758]
[1755354114716,0.80474781,4403.3,4403.2,1.4758]
[1755354115614,1.43574781,4403.3,4403.2,1.4758]
[1755354116118,1.69624781,4403.3,4403.2,1.2233]
[1755354116818,1.43574781,4403.3,4403.2,1.2233]
[1755354117017,1.43574781,4403.3,4403.2,1.4758]
[1755354118518,0.37004781,4403.3,4403.2,1.4758]
[1755354119616,0.19753058,4403.3,4403.2,0.9565]
[1755354119818,0.19753058,4403.3,4403.2,1.209]
[1755354120020,3.8015,4403.9,4403.8,0.5873]
[1755354120216,0.6445,4403.8,4402.9,3.2078]
[1755354120415,0.5497,4402.1,4401.8,0.636]
[1755354120616,0.4212,4401.8,4401.7,3.2078]
[1755354120913,1.4987,4401.3,4401.2,3.2078]
[1755354121114,0.78233609,4401.3,4400.7,4.0476]
[1755354121322,1.2382,4401.7,4401.6,1.4758]
[1755354121619,1.69600996,4401.7,4401.6,0.6883]
[1755354123620,0.19730996,4401.7,4401.6,1.4758]
[1755354123824,1.43550996,4401.7,4401.6,1.4758]
[1755354124322,1.2382,4401.4,4401.3,1.209]
[1755354124913,1.2382,4401.4,4401.3,1.4758]
[1755354126009,0.2673,4401.7,4401.6,0.1658]
[1755354126212,0.46443255,4401.7,4401.6,1.4758]
[1755354126620,0.19713255,4401.7,4401.6,1.4758]
[1755354127323,0.6072,4402.3,4402.2,0.5873]
[1755354127523,0.2673,4402.2,4401.7,0.2668]
[1755354127720,0.6072,4401.8,4401.7,1.4758]
[1755354130524,0.3399,4401.8,4401.7,1.4758]
[1755354130720,0.1725,4401.8,4401.7,1.4758]
[1755354130926,0.6885,4402.7,4402.6,0.8541]
[1755354131125,0.19807943,4402.7,4402.6,1.4758]
[1755354131418,0.9844,4403.1,4403.0,1.4758]
[1755354131624,1.182428,4403.1,4403.0,1.4758]
[1755354131824,0.198028,4403.1,4403.0,1.4758]
[1755354132217,1.436228,4403.1,4403.0,1.4758]
[1755354132622,0.198028,4403.1,4403.0,1.4758]
[1755354133022,3.2078,4403.4,4402.8,3.2078]
[1755354133023,0.9844,4403.8,4403.7,0.5873]
[1755354133221,2.02045439,4403.8,4403.7,1.4758]
[1755354133418,0.78225439,4403.8,4403.7,1.4758]
[1755354133619,0.78215035,4403.8,4403.7,1.4758]
[1755354133819,0.53788831,4403.8,4403.7,1.4758]
[1755354134026,1.43618831,4403.8,4403.7,1.4758]
[1755354134619,0.37048831,4403.8,4403.7,1.4758]
[1755354134928,0.7445,4404.2,4403.7,1.4758]
[1755354135123,0.19795674,4404.1,4403.8,0.8885]
[1755354135327,0.7445,4404.2,4404.0,0.5873]
[1755354135525,0.19789755,4404.1,4404.0,0.5873]
[1755354136124,0.19789755,4404.1,4404.0,1.4758]
[1755354137233,0.19789755,4404.1,4404.0,4.6836]
[1755354137529,0.1,4404.2,4404.1,1.2188]
[1755354137719,0.1,4404.2,4404.1,1.4758]
[1755354139730,0.6966,4404.2,4404.1,1.4758]
[1755354139934,1.334,4404.2,4404.0,3.2078]
[1755354140233,0.9564,4404.2,4404.1,0.4107]
[1755354140522,1.2158,4404.2,4404.1,0.8304]
[1755354140718,1.587,4404.2,4404.1,1.2107]
[1755354140921,1.334,4404.2,4404.1,1.4659]
[1755354142939,0.2594,4404.1,4403.5,0.2428]
[1755354143137,0.8548,4403.6,4403.5,1.4659]
[1755354143533,0.1645,4403.6,4403.5,1.4659]
[1755354146539,0.3292,4403.6,4403.5,1.4659]
[1755354146727,0.9598,4403.6,4403.5,1.4659]
[1755354149435,0.5886,4403.6,4403.5,1.4659]
[1755354150540,1.226,4403.6,4403.5,1.4659]
[1755354155038,0.2594,4403.9,4403.5,1.4659]
[1755354155234,0.6306,4404.1,4403.9,0.6355]